fUSD/lending_fUSD_20250716
["ID","MTS","AMOUNT","RATE_DAILY","PERIOD"]
[372465779,1752654652501,-151.0,0.00021917,2]
[372465780,1752654652511,-979.93402,0.00021917,2]
[372465781,1752654652521,-979.93402,0.00021917,2]
[372465782,1752654652531,-979.93402,0.00021917,2]
[372465783,1752654652541,-151.0,0.00021917,2]
[372465784,1752654652551,-979.93402,0.00021917,2]
[372465785,1752654652560,-577.91,0.00021917,2]
[372465786,1752654652570,-1166.58,0.00021917,2]
[372465787,1752654652580,-460.0,0.00021917,2]
[372465788,1752654652590,-979.93402,0.00021917,2]
[372465789,1752654652600,-979.93402,0.00021917,2]
[372465790,1752654652609,-979.93402,0.00021917,2]
[372465791,1752654652619,-979.93402,0.00021917,2]
[372465792,1752654652628,-806.65,0.00021917,2]
[372465793,1752654652638,-183.29252206,0.00021917,2]
[372465794,1752654652647,-979.93402,0.00021917,2]
[372465795,1752654652657,-979.93401197,0.00021917,2]
[372465796,1752654652667,-151.0,0.00021917,2]
[372465797,1752654652677,-182.940037,0.00021917,2]
[372465798,1752654652686,-1397.98,0.00021917,2]
[372465799,1752654652696,-455.0,0.00021917,2]
[372465800,1752654652706,-503.69,0.00021917,2]
[372465801,1752654652715,-460.0,0.00021917,2]
[372465802,1752654652725,-460.0,0.00021917,2]
[372465803,1752654652734,-13202.59,0.00021917,2]
[372465804,1752654652744,-460.0,0.00021917,2]
[372465805,1752654652754,-905.68,0.00021917,2]
[372465806,1752654652763,-1607.13,0.00021917,2]
[372465807,1752654652773,-330.09660172,0.00021917,2]
[372465808,1752654652782,-460.0,0.00021917,2]
[372465809,1752654652792,-460.0,0.00021917,2]
[372465810,1752654652801,-460.0,0.00021917,2]
[372465811,1752654652811,-1104.23,0.00021917,2]
[372465812,1752654652820,-460.0,0.00021917,2]
[372465813,1752654652830,-1265.22,0.00021917,2]
[372465814,1752654652840,-1517.21,0.00021917,2]
[372465815,1752654652849,-460.0,0.00021917,2]
[372465816,1752654652860,-2839.99,0.00021917,2]
[372465817,1752654652870,-2291.76,0.00021917,2]
[372465818,1752654652879,-692.83,0.00021917,2]
[372465819,1752654652889,-460.0,0.00021917,2]
[372465820,1752654652899,-460.0,0.00021917,2]
[372465821,1752654652909,-752.97,0.00021917,2]
[372465822,1752654652919,-1265.03,0.00021917,2]
[372465823,1752654652929,-460.0,0.00021917,2]
[372465824,1752654652938,-151.0,0.00021917,2]
[372465825,1752654652948,-1380.54,0.00021917,2]
[372465826,1752654652958,-151.0,0.00021917,2]
[372465827,1752654652967,-162.084367,0.00021917,2]
[372465828,1752654652977,-460.0,0.00021917,2]
[372465829,1752654652987,-460.0,0.00021917,2]
[372465830,1752654652996,-460.0,0.00021917,2]
[372465831,1752654653006,-1822.46,0.00021917,2]
[372465832,1752654653016,-1923.18,0.00021917,2]
[372465833,1752654653026,-460.0,0.00021917,2]
[372465834,1752654653036,-1431.2,0.00021917,2]
[372465835,1752654653046,-460.0,0.00021917,2]
[372465836,1752654653056,-460.0,0.00021917,2]
[372465837,1752654653066,-460.0,0.00021917,2]
[372465838,1752654653076,-460.0,0.00021917,2]
[372465839,1752654653086,-150.0,0.00021917,2]
[372465840,1752654653096,-460.0,0.00021917,2]
[372465841,1752654653106,-2861.14,0.00021917,2]
[372465842,1752654653116,-490.0496917,0.00021917,2]
[372465843,1752654653126,-460.0,0.00021917,2]
[372465844,1752654653135,-543.91825323,0.00021917,2]
[372465845,1752654653145,-553.74843113,0.00021917,2]
[372465846,1752654653155,-1198.2,0.00021917,2]
[372465847,1752654653165,-500.0,0.00021917,2]
[372465848,1752654653175,-500.0,0.00021917,2]
[372465849,1752654653184,-500.0,0.00021917,2]
[372465850,1752654653194,-687.93,0.00021917,2]
[372465851,1752654653204,-150.0,0.00021917,2]
[372465852,1752654653214,-2676.43,0.00021917,2]
[372465853,1752654653224,-1229.36,0.00021917,2]
[372465854,1752654653234,-516.91,0.00021917,2]
[372465855,1752654653243,-500.0,0.00021917,2]
[372465856,1752654653253,-460.0,0.00021917,2]
[372465857,1752654653262,-460.0,0.00021917,2]
[372465858,1752654653272,-580.22,0.00021917,2]
[372465859,1752654653281,-2153.79,0.00021917,2]
[372465860,1752654653291,-467.37,0.00021917,2]
[372465861,1752654653300,-524.05,0.00021917,2]
[372465862,1752654653310,-578.14320143,0.00021917,2]
[372465863,1752654653319,-1881.72,0.00021917,2]
[372465864,1752654653329,-460.0,0.00021917,2]
[372465865,1752654653339,-2675.58,0.00021917,2]
[372465866,1752654653348,-460.0,0.00021917,2]
[372465867,1752654653357,-496.33,0.00021917,2]
[372465868,1752654653367,-457.42,0.00021917,2]
[372465869,1752654653376,-460.0,0.00021917,2]
[372465870,1752654653386,-1255.72,0.00021917,2]
[372465871,1752654653395,-462.35536448,0.00021917,2]
[372465872,1752654653405,-1395.27,0.00021917,2]
[372465873,1752654653415,-772.87,0.00021917,2]
[372465874,1752654653425,-460.0,0.00021917,2]
[372465875,1752654653434,-338.13819307,0.00021917,2]
[372465876,1752654653446,-2977.53,0.00021917,2]
[372465877,1752654653456,-151.0,0.00021917,2]
[372465878,1752654653466,-460.0,0.00021917,2]
[372465879,1752654653476,-151.0,0.00021917,2]
[372465880,1752654653486,-538.67018256,0.00021917,2]
[372465881,1752654653497,-460.0,0.00021917,2]
[372465882,1752654653507,-789.87,0.00021917,2]
[372465883,1752654653516,-1674.03,0.00021917,2]
[372465884,1752654653527,-1439.2,0.00021917,2]
[372465885,1752654653536,-687.54,0.00021917,2]
[372465886,1752654653546,-676.52,0.00021917,2]
[372465887,1752654653556,-822.73,0.00021917,2]
[372465888,1752654653566,-460.0,0.00021917,2]
[372465889,1752654653575,-2453.04,0.00021917,2]
[372465890,1752654653585,-1479.99,0.00021917,2]
[372465891,1752654653595,-1116.22,0.00021917,2]
[372465892,1752654653605,-460.0,0.00021917,2]
[372465893,1752654653615,-151.250479,0.00021917,2]
[372465894,1752654653625,-151.0,0.00021917,2]
[372465895,1752654653635,-460.0,0.00021917,2]
[372465896,1752654653645,-151.0,0.00021917,2]
[372465897,1752654653655,-151.0,0.00021917,2]
[372465898,1752654653664,-859.13,0.00021917,2]
[372465899,1752654653674,-151.0,0.00021917,2]
[372465900,1752654653683,-598.34,0.00021917,2]
[372465901,1752654653693,-151.0,0.00021917,2]
[372465902,1752654653704,-151.0,0.00021917,2]
[372465903,1752654653714,-151.0,0.00021917,2]
[372465904,1752654653724,-942.79,0.00021917,2]
[372465905,1752654653734,-151.0,0.00021917,2]
[372465906,1752654653744,-151.0,0.00021917,2]
[372465907,1752654653754,-151.0,0.00021917,2]
[372465908,1752654653763,-151.0,0.00021917,2]
[372465909,1752654653774,-1190.65,0.00021917,2]
[372465910,1752654653784,-2581.72,0.00021917,2]
[372465911,1752654653795,-151.0,0.00021917,2]
[372465912,1752654653805,-151.0,0.00021917,2]
[372465913,1752654653815,-151.0,0.00021917,2]
[372465914,1752654653825,-151.0,0.00021917,2]
[372465915,1752654653834,-460.0,0.00021917,2]
[372465916,1752654653844,-177.16867,0.00021917,2]
[372465917,1752654653854,-151.0,0.00021917,2]
[372465918,1752654653863,-151.0,0.00021917,2]
[372465919,1752654653873,-151.0,0.00021917,2]
[372465920,1752654653883,-151.0,0.00021917,2]
[372465921,1752654653892,-1321.64,0.00021917,2]
[372465922,1752654653902,-2860.89,0.00021917,2]
[372465923,1752654653911,-200.49229882,0.00021917,2]
[372465924,1752654653921,-460.0,0.00021917,2]
[372465925,1752654653930,-1687.17,0.00021917,2]
[372465926,1752654653940,-500.0,0.00021917,2]
[372465927,1752654653950,-460.0,0.00021917,2]
[372465928,1752654653961,-463.2396678,0.00021917,2]
[372465929,1752654653971,-460.0,0.00021917,2]
[372465930,1752654653981,-460.0,0.00021917,2]
[372465931,1752654653990,-965.41,0.00021917,2]
[372465932,1752654654000,-691.27,0.00021917,2]
[372465933,1752654654009,-460.0,0.00021917,2]
[372465934,1752654654019,-460.0,0.00021917,2]
[372465935,1752654654029,-460.0,0.00021917,2]
[372465936,1752654654038,-460.0,0.00021917,2]
[372465937,1752654654048,-151.0,0.00021917,2]
[372465938,1752654654057,-500.0,0.00021917,2]
[372465939,1752654654068,-474.0,0.00021917,2]
[372465940,1752654654077,-500.0,0.00021917,2]
[372465941,1752654654087,-500.0,0.00021917,2]
[372465942,1752654654098,-462.63349962,0.00021917,2]
[372465943,1752654654108,-507.0613143,0.00021917,2]
[372465944,1752654654117,-461.52471845,0.00021917,2]
[372465945,1752654654127,-500.0,0.00021917,2]
[372465946,1752654654137,-549.92,0.00021917,2]
[372465947,1752654654146,-500.0,0.00021917,2]
[372465948,1752654654156,-3614.84,0.00021917,2]
[372465949,1752654654166,-532.65,0.00021917,2]
[372465950,1752654654176,-987.34,0.00021917,2]
[372465951,1752654654186,-460.0,0.00021917,2]
[372465952,1752654654197,-460.0,0.00021917,2]
[372465953,1752654654206,-999.22,0.00021917,2]
[372465954,1752654654216,-460.0,0.00021917,2]
[372465955,1752654654226,-1343.11,0.00021917,2]
[372465956,1752654654236,-460.0,0.00021917,2]
[372465957,1752654654247,-460.0,0.00021917,2]
[372465958,1752654654257,-1245.31,0.00021917,2]
[372465959,1752654654266,-460.0,0.00021917,2]
[372465960,1752654654276,-620.17,0.00021917,2]
[372465961,1752654654286,-222.58554164,0.00021917,2]
[372465962,1752654654295,-462.71561339,0.00021917,2]
[372465963,1752654654305,-482.97,0.00021917,2]
[372465964,1752654654314,-1820.88,0.00021917,2]
[372465965,1752654654324,-465.83195954,0.00021917,2]
[372465966,1752654654334,-460.0,0.00021917,2]
[372465967,1752654654344,-460.0,0.00021917,2]
[372465968,1752654654354,-1067.68,0.00021917,2]
[372465969,1752654654363,-462.78904692,0.00021917,2]
[372465970,1752654654373,-2677.61,0.00021917,2]
[372465971,1752654654383,-460.0,0.00021917,2]
[372465972,1752654654393,-500.0,0.00021917,2]
[372465973,1752654654403,-461.73,0.00021917,2]
[372465974,1752654654412,-3414.07,0.00021917,2]
[372465975,1752654654422,-151.950839,0.00021917,2]
[372465976,1752654654432,-480.48,0.00021917,2]
[372465977,1752654654442,-460.0,0.00021917,2]
[372465978,1752654654459,-4853.39,0.00021917,2]
[372465979,1752654654470,-1573.11,0.00021917,2]
[372465980,1752654654480,-3201.49,0.00021917,2]
[372465981,1752654654490,-1094.68,0.00021917,2]
[372465982,1752654654500,-460.0,0.00021917,2]
[372465983,1752654654510,-1925.6,0.00021917,2]
[372465984,1752654654520,-460.0,0.00021917,2]
[372465985,1752654654530,-927.57,0.00021917,2]
[372465986,1752654654539,-965.06,0.00021917,2]
[372465987,1752654654549,-1967.34,0.00021917,2]
[372465988,1752654654559,-517.99,0.00021917,2]
[372465989,1752654654568,-460.0,0.00021917,2]
[372465990,1752654654578,-773.29,0.00021917,2]
[372465991,1752654654587,-460.0,0.00021917,2]
[372465992,1752654654597,-540.68,0.00021917,2]
[372465993,1752654654606,-462.17036318,0.00021917,2]
[372465994,1752654654616,-1854.61,0.00021917,2]
[372465995,1752654654626,-3991.96,0.00021917,2]
[372465996,1752654654636,-460.0,0.00021917,2]
[372465997,1752654654645,-913.22,0.00021917,2]
[372465998,1752654654655,-460.0,0.00021917,2]
[372465999,1752654654665,-2906.87,0.00021917,2]
[372466000,1752654654674,-3455.04,0.00021917,2]
[372466001,1752654654684,-765.55,0.00021917,2]
[372466002,1752654654694,-461.97131506,0.00021917,2]
[372466003,1752654654704,-460.0,0.00021917,2]
[372466004,1752654654713,-460.0,0.00021917,2]
[372466005,1752654654723,-2723.8,0.00021917,2]
[372466006,1752654654732,-460.0,0.00021917,2]
[372466007,1752654654742,-493.21432492,0.00021917,2]
[372466008,1752654654751,-819.11,0.00021917,2]
[372466009,1752654654760,-151.0,0.00021917,2]
[372466010,1752654654770,-460.0,0.00021917,2]
[372466011,1752654654780,-151.0,0.00021917,2]
[372466012,1752654654790,-596.33,0.00021917,2]
[372466013,1752654654799,-460.0,0.00021917,2]
[372466014,1752654654810,-460.0,0.00021917,2]
[372466015,1752654654922,-151.0,0.00021917,2]
[372466016,1752654654932,-598.74,0.00021917,2]
[372466017,1752654654942,-151.0,0.00021917,2]
[372466018,1752654654951,-288.339864,0.00021917,2]
[372466019,1752654654961,-460.0,0.00021917,2]
[372466020,1752654654971,-6437.88,0.00021917,2]
[372466021,1752654654980,-151.0,0.00021917,2]
[372466022,1752654654990,-1398.66,0.00021917,2]
[372466023,1752654654999,-151.0,0.00021917,2]
[372466024,1752654655009,-882.49,0.00021917,2]
[372466025,1752654655020,-151.0,0.00021917,2]
[372466026,1752654655030,-1433.73,0.00021917,2]
[372466027,1752654655040,-151.0,0.00021917,2]
[372466028,1752654655051,-460.0,0.00021917,2]
[372466029,1752654655061,-460.0,0.00021917,2]
[372466030,1752654655071,-151.0,0.00021917,2]
[372466031,1752654655080,-460.0,0.00021917,2]
[372466032,1752654655090,-151.0,0.00021917,2]
[372466033,1752654655099,-1028.33,0.00021917,2]
[372466034,1752654655109,-151.0,0.00021917,2]
[372466035,1752654655119,-472.86,0.00021917,2]
[372466036,1752654655128,-151.0,0.00021917,2]
[372466037,1752654655137,-1357.0,0.00021917,2]
[372466038,1752654655147,-151.0,0.00021917,2]
[372466039,1752654655156,-151.0,0.00021917,2]
[372466040,1752654655166,-151.0,0.00021917,2]
[372466041,1752654655175,-460.0,0.00021917,2]
[372466042,1752654655185,-1256.55,0.00021917,2]
[372466043,1752654655195,-151.0,0.00021917,2]
[372466044,1752654655205,-276.97507,0.00021917,2]
[372466045,1752654655214,-151.0,0.00021917,2]
[372466046,1752654655223,-151.0,0.00021917,2]
[372466047,1752654655233,-529.24,0.00021917,2]
[372466048,1752654655242,-460.0,0.00021917,2]
[372466049,1752654655251,-162.59891,0.00021917,2]
[372466050,1752654655262,-18295.78,0.00021917,2]
[372466051,1752654655271,-460.0,0.00021917,2]
[372466052,1752654655281,-3126.19,0.00021917,2]
[372466053,1752654655291,-1076.19,0.00021917,2]
[372466054,1752654655300,-8676.59,0.00021917,2]
[372466055,1752654655309,-151.0,0.00021917,2]
[372466056,1752654655319,-460.0,0.00021917,2]
[372466057,1752654655328,-460.0,0.00021917,2]
[372466058,1752654655338,-460.0,0.00021917,2]
[372466059,1752654655347,-460.0,0.00021917,2]
[372466060,1752654655357,-151.0,0.00021917,2]
[372466061,1752654655367,-461.16768021,0.00021917,2]
[372466062,1752654655376,-151.0,0.00021917,2]
[372466063,1752654655386,-151.0,0.00021917,2]
[372466064,1752654655395,-460.0,0.00021917,2]
[372466065,1752654655405,-460.0,0.00021917,2]
[372466066,1752654655414,-151.0,0.00021917,2]
[372466067,1752654655423,-500.0,0.00021917,2]
[372466068,1752654655433,-2296.63,0.00021917,2]
[372466069,1752654655442,-500.0,0.00021917,2]
[372466070,1752654655456,-151.0,0.00021917,2]
[372466071,1752654655467,-500.0,0.00021917,2]
[372466072,1752654655476,-500.0,0.00021917,2]
[372466073,1752654655487,-151.0,0.00021917,2]
[372466074,1752654655499,-460.0,0.00021917,2]
[372466075,1752654655508,-3481.19,0.00021917,2]
[372466076,1752654655517,-460.0,0.00021917,2]
[372466077,1752654655526,-151.0,0.00021917,2]
[372466078,1752654655535,-5059.96,0.00021917,2]
[372466079,1752654655545,-151.0,0.00021917,2]
[372466080,1752654655554,-500.0,0.00021917,2]
[372466081,1752654655564,-1025.95,0.00021917,2]
[372466082,1752654655575,-500.0,0.00021917,2]
[372466083,1752654655585,-151.0,0.00021917,2]
[372466084,1752654655595,-500.0,0.00021917,2]
[372466085,1752654655604,-714.75,0.00021917,2]
[372466086,1752654655613,-150.0,0.00021917,2]
[372466087,1752654655622,-151.0,0.00021917,2]
[372466088,1752654655631,-151.0,0.00021917,2]
[372466089,1752654655640,-151.0,0.00021917,2]
[372466090,1752654655649,-460.0,0.00021917,2]
[372466091,1752654655659,-151.0,0.00021917,2]
[372466092,1752654655668,-460.0,0.00021917,2]
[372466093,1752654655678,-151.0,0.00021917,2]
[372466094,1752654655687,-2131.89,0.00021917,2]
[372466095,1752654655697,-151.0,0.00021917,2]
[372466096,1752654655707,-460.0,0.00021917,2]
[372466097,1752654655716,-460.0,0.00021917,2]
[372466098,1752654655726,-1198.93,0.00021917,2]
[372466099,1752654655735,-228.759366,0.00021917,2]
[372466100,1752654655744,-460.0,0.00021917,2]
[372466101,1752654655753,-1410.57,0.00021917,2]
[372466102,1752654655763,-2359.27,0.00021917,2]
[372466103,1752654655772,-61264.95,0.00021917,2]
[372466104,1752654655781,-460.0,0.00021917,2]
[372466105,1752654655790,-460.0,0.00021917,2]
[372466106,1752654655800,-1555.81,0.00021917,2]
[372466107,1752654655809,-460.0,0.00021917,2]
[372466108,1752654655819,-1665.38,0.00021917,2]
[372466109,1752654655829,-460.0,0.00021917,2]
[372466110,1752654655838,-500.0,0.00021917,2]
[372466111,1752654655848,-500.0,0.00021917,2]
[372466112,1752654655857,-460.0,0.00021917,2]
[372466113,1752654655867,-841.22,0.00021917,2]
[372466114,1752654655876,-500.0,0.00021917,2]
[372466115,1752654655886,-500.0,0.00021917,2]
[372466116,1752654655897,-6744.03,0.00021917,2]
[372466117,1752654655906,-500.0,0.00021917,2]
[372466118,1752654655916,-500.0,0.00021917,2]
[372466119,1752654655926,-500.0,0.00021917,2]
[372466120,1752654655935,-152.666509,0.00021917,2]
[372466121,1752654655944,-500.0,0.00021917,2]
[372466122,1752654655956,-500.0,0.00021917,2]
[372466123,1752654655966,-152.666509,0.00021917,2]
[372466124,1752654655976,-282.7349704,0.00021917,2]
[372466125,1752654655986,-152.666509,0.00021917,2]
[372466126,1752654655995,-2860.16,0.00021917,2]
[372466127,1752654656005,-152.666509,0.00021917,2]
[372466128,1752654656014,-152.666509,0.00021917,2]
[372466129,1752654656024,-460.0,0.00021917,2]
[372466130,1752654656034,-152.666509,0.00021917,2]
[372466131,1752654656043,-1745.31,0.00021917,2]
[372466132,1752654656053,-1964.35,0.00021917,2]
[372466133,1752654656062,-152.666509,0.00021917,2]
[372466134,1752654656071,-460.0,0.00021917,2]
[372466135,1752654656081,-152.666509,0.00021917,2]
[372466136,1752654656091,-3178.66,0.00021917,2]
[372466137,1752654656100,-152.666509,0.00021917,2]
[372466138,1752654656110,-151.0,0.00021917,2]
[372466139,1752654656119,-1260.42,0.00021917,2]
[372466140,1752654656128,-460.0,0.00021917,2]
[372466141,1752654656138,-152.666509,0.00021917,2]
[372466142,1752654656149,-151.0,0.00021917,2]
[372466143,1752654656159,-152.666509,0.00021917,2]
[372466144,1752654656170,-460.0,0.00021917,2]
[372466145,1752654656180,-151.0,0.00021917,2]
[372466146,1752654656190,-460.0,0.00021917,2]
[372466147,1752654656202,-152.666509,0.00021917,2]
[372466148,1752654656211,-151.0,0.00021917,2]
[372466149,1752654656221,-152.666509,0.00021917,2]
[372466150,1752654656230,-151.0,0.00021917,2]
[372466151,1752654656239,-152.666509,0.00021917,2]
[372466152,1752654656249,-151.0,0.00021917,2]
[372466153,1752654656259,-152.666509,0.00021917,2]
[372466154,1752654656269,-460.0,0.00021917,2]
[372466155,1752654656280,-151.0,0.00021917,2]
[372466156,1752654656292,-460.0,0.00021917,2]
[372466157,1752654656302,-152.666509,0.00021917,2]
[372466158,1752654656312,-461.03122876,0.00021917,2]
[372466159,1752654656322,-152.666509,0.00021917,2]
[372466160,1752654656331,-152.666509,0.00021917,2]
[372466161,1752654656340,-152.666509,0.00021917,2]
[372466162,1752654656350,-162.193536,0.00021917,2]
[372466163,1752654656359,-152.666518,0.00021917,2]
[372466164,1752654656377,-1643.3132,0.00021917,2]
[372466165,1752654656387,-4935.34,0.00021917,2]
[372466166,1752654656397,-8849.43,0.00021917,2]
[372466167,1752654656406,-197.35768917,0.00021917,2]
[372466168,1752654656415,-460.0,0.00021917,2]
[372466169,1752654656424,-939.02,0.00021917,2]
[372466170,1752654656434,-1114.79,0.00021917,2]
[372466171,1752654656443,-1506.0,0.00021917,2]
[372466172,1752654656457,-151.0,0.00021917,2]
[372466173,1752654656467,-460.0,0.00021917,2]
[372466174,1752654656476,-460.0,0.00021917,2]
[372466175,1752654656486,-151.0,0.00021917,2]
[372466176,1752654656496,-151.0,0.00021917,2]
[372466177,1752654656506,-487.49,0.00021917,2]
[372466178,1752654656515,-509.34,0.00021917,2]
[372466179,1752654656524,-151.0,0.00021917,2]
[372466180,1752654656535,-573.96,0.00021917,2]
[372466181,1752654656546,-151.0,0.00021917,2]
[372466182,1752654656555,-153.603332,0.00021917,2]
[372466183,1752654656564,-896.66,0.00021917,2]
[372466184,1752654656573,-1735.42,0.00021917,2]
[372466185,1752654656582,-752.3,0.00021917,2]
[372466186,1752654656592,-1949.98,0.00021917,2]
[372466187,1752654656601,-460.0,0.00021917,2]
[372466188,1752654656611,-3929.92,0.00021917,2]
[372466189,1752654656621,-913.06,0.00021917,2]
[372466190,1752654656631,-4499.09,0.00021917,2]
[372466191,1752654656642,-812.57,0.00021917,2]
[372466192,1752654656651,-491.09,0.00021917,2]
[372466193,1752654656660,-151.0,0.00021917,2]
[372466194,1752654656669,-151.0,0.00021917,2]
[372466195,1752654656679,-1797.8,0.00021917,2]
[372466196,1752654656688,-151.0,0.00021917,2]
[372466197,1752654656698,-151.0,0.00021917,2]
[372466198,1752654656708,-151.0,0.00021917,2]
[372466199,1752654656717,-155.829971,0.00021917,2]
[372466200,1752654656726,-1988.33,0.00021917,2]
[372466201,1752654656736,-151.379501,0.00021917,2]
[372466202,1752654656745,-460.0,0.00021917,2]
[372466203,1752654656754,-460.0,0.00021917,2]
[372466204,1752654656763,-477.1,0.00021917,2]
[372466205,1752654656773,-462.09173111,0.00021917,2]
[372466206,1752654656782,-460.0,0.00021917,2]
[372466207,1752654656791,-4430.62,0.00021917,2]
[372466208,1752654656801,-500.0,0.00021917,2]
[372466209,1752654656810,-500.0,0.00021917,2]
[372466210,1752654656820,-1580.16,0.00021917,2]
[372466211,1752654656829,-17711.17,0.00021917,2]
[372466212,1752654656839,-677.47,0.00021917,2]
[372466213,1752654656848,-1842.04,0.00021917,2]
[372466214,1752654656857,-465.88,0.00021917,2]
[372466215,1752654656867,-2643.6,0.00021917,2]
[372466216,1752654656876,-460.0,0.00021917,2]
[372466217,1752654656886,-1798.78,0.00021917,2]
[372466218,1752654656895,-949.57,0.00021917,2]
[372466219,1752654656905,-1896.84,0.00021917,2]
[372466220,1752654656915,-460.0,0.00021917,2]
[372466221,1752654656924,-2901.69,0.00021917,2]
[372466222,1752654656934,-460.0,0.00021917,2]
[372466223,1752654656943,-6078.04,0.00021917,2]
[372466224,1752654656955,-152.70195244,0.00021917,2]
[372466225,1752654656964,-991.22,0.00021917,2]
[372466226,1752654656974,-1662.59,0.00021917,2]
[372466227,1752654656983,-529.36,0.00021917,2]
[372466228,1752654656993,-529.36,0.00021917,2]
[372466229,1752654657002,-529.36,0.00021917,2]
[372466230,1752654657013,-17722.07,0.00021917,2]
[372466231,1752654657023,-581.18,0.00021917,2]
[372466232,1752654657032,-151.0,0.00021917,2]
[372466233,1752654657042,-529.36,0.00021917,2]
[372466234,1752654657051,-529.36,0.00021917,2]
[372466235,1752654657060,-529.36,0.00021917,2]
[372466236,1752654657070,-529.36,0.00021917,2]
[372466237,1752654657080,-529.36,0.00021917,2]
[372466238,1752654657091,-963.99,0.00021917,2]
[372466239,1752654657102,-460.0,0.00021917,2]
[372466240,1752654657113,-529.36,0.00021917,2]
[372466241,1752654657126,-151.0,0.00021917,2]
[372466242,1752654657138,-529.36,0.00021917,2]
[372466243,1752654657150,-151.0,0.00021917,2]
[372466244,1752654657160,-5852.97,0.00021917,2]
[372466245,1752654657172,-529.36,0.00021917,2]
[372466246,1752654657182,-971.72,0.00021917,2]
[372466247,1752654657193,-529.36,0.00021917,2]
[372466248,1752654657205,-151.0,0.00021917,2]
[372466249,1752654657215,-4187.76,0.00021917,2]
[372466250,1752654657224,-529.36,0.00021917,2]
[372466251,1752654657234,-460.0,0.00021917,2]
[372466252,1752654657244,-1135.34,0.00021917,2]
[372466253,1752654657254,-529.36,0.00021917,2]
[372466254,1752654657263,-151.0,0.00021917,2]
[372466255,1752654657273,-1226.54,0.00021917,2]
[372466256,1752654657282,-151.0,0.00021917,2]
[372466257,1752654657292,-151.0,0.00021917,2]
[372466258,1752654657301,-1132.15,0.00021917,2]
[372466259,1752654657311,-460.0,0.00021917,2]
[372466260,1752654657320,-151.0,0.00021917,2]
[372466261,1752654657330,-151.0,0.00021917,2]
[372466262,1752654657339,-151.0,0.00021917,2]
[372466263,1752654657349,-2264.39,0.00021917,2]
[372466264,1752654657358,-151.0,0.00021917,2]
[372466265,1752654657367,-151.0,0.00021917,2]
[372466266,1752654657377,-151.0,0.00021917,2]
[372466267,1752654657387,-4253.71,0.00021917,2]
[372466268,1752654657396,-151.0,0.00021917,2]
[372466269,1752654657406,-460.0,0.00021917,2]
[372466270,1752654657415,-151.0,0.00021917,2]
[372466271,1752654657425,-460.0,0.00021917,2]
[372466272,1752654657434,-1893.73,0.00021917,2]
[372466273,1752654657444,-151.0,0.00021917,2]
[372466274,1752654657458,-151.0,0.00021917,2]
[372466275,1752654657468,-151.0,0.00021917,2]
[372466276,1752654657478,-1078.2,0.00021917,2]
[372466277,1752654657490,-460.0,0.00021917,2]
[372466278,1752654657501,-260.570657,0.00021917,2]